fUSD/lending_fUSD_20240609
["ID","MTS","AMOUNT","RATE_DAILY","PERIOD"]
[328893339,1717963862523,-558.64586095,0.00029041,4]
[328893340,1717963862537,-506.28590044,0.00029041,4]
[328893341,1717963862547,-500.0,0.00029041,4]
[328893342,1717963862557,-500.0,0.00029041,4]
[328893343,1717963862567,-500.0,0.00029041,4]
[328893344,1717963862577,-500.0,0.00029041,4]
[328893345,1717963862588,-628.91,0.00029041,4]
[328893346,1717963862599,-500.0,0.00029041,4]
[328893347,1717963862613,-500.0,0.00029041,4]
[328893348,1717963862625,-628.91,0.00029041,4]
[328893349,1717963862635,-500.0,0.00029041,4]
[328893350,1717963862647,-271.56,0.00029041,4]
[328893351,1717963862657,-500.0,0.00029041,4]
[328893352,1717963862668,-628.91,0.00029041,4]
[328893353,1717963862678,-500.0,0.00029041,4]
[328893354,1717963862689,-628.91,0.00029041,4]
[328893355,1717963862700,-628.91,0.00029041,4]
[328893356,1717963862710,-615.1,0.00029041,4]
[328893357,1717963862721,-500.0,0.00029041,4]
[328893358,1717963862733,-500.0,0.00029041,4]
[328893359,1717963862744,-17467.96,0.00029041,4]
[328893360,1717963862754,-500.0,0.00029041,4]
[328893361,1717963862765,-500.0,0.00029041,4]
[328893362,1717963862776,-535.55217806,0.00029041,4]
[328893363,1717963862786,-17467.96,0.00029041,4]
[328893364,1717963862797,-500.0,0.00029041,4]
[328893365,1717963862807,-500.0,0.00029041,4]
[328893366,1717963862818,-371.68,0.00029041,4]
[328893367,1717963862829,-17467.96,0.00029041,4]
[328893368,1717963862840,-500.0,0.00029041,4]
[328893369,1717963862851,-500.0,0.00029041,4]
[328893370,1717963862862,-17467.96,0.00029041,4]
[328893371,1717963862873,-500.0,0.00029041,4]
[328893372,1717963862883,-500.0,0.00029041,4]
[328893373,1717963862894,-17467.96,0.00029041,4]
[328893374,1717963862906,-500.0,0.00029041,4]
[328893375,1717963862917,-500.0,0.00029041,4]
[328893376,1717963862929,-500.0,0.00029041,4]
[328893377,1717963862939,-500.0,0.00029041,4]
[328893378,1717963862950,-500.0,0.00029041,4]
[328893379,1717963862961,-500.0,0.00029041,4]
[328893380,1717963862972,-500.0,0.00029041,4]
[328893381,1717963862983,-500.0,0.00029041,4]
[328893382,1717963862993,-500.0,0.00029041,4]
[328893383,1717963863003,-500.0,0.00029041,4]
[328893384,1717963863013,-500.0,0.00029041,4]
[328893385,1717963863022,-500.0,0.00029041,4]
[328893386,1717963863032,-263.098605,0.00029041,7]
[328893387,1717963863043,-500.0,0.00029041,4]
[328893388,1717963863052,-500.0,0.00029041,4]
[328893389,1717963863062,-500.0,0.00029041,4]
[328893390,1717963863073,-263.098605,0.00029041,7]
[328893391,1717963863084,-500.0,0.00029041,4]
[328893392,1717963863094,-500.0,0.00029041,4]
[328893393,1717963863105,-500.0,0.00029041,4]
[328893394,1717963863116,-500.0,0.00029041,4]
[328893395,1717963863127,-263.098605,0.00029041,7]
[328893396,1717963863137,-500.0,0.00029041,4]
[328893397,1717963863147,-500.0,0.00029041,4]
[328893398,1717963863158,-500.0,0.00029041,4]
[328893399,1717963863168,-500.0,0.00029041,4]
[328893400,1717963863290,-263.098605,0.00029041,7]
[328893401,1717963863300,-500.0,0.00029041,4]
[328893402,1717963863310,-500.0,0.00029041,4]
[328893403,1717963863321,-500.0,0.00029041,4]
[328893404,1717963863331,-713.77,0.00029041,4]
[328893405,1717963863342,-500.0,0.00029041,4]
[328893406,1717963863352,-500.0,0.00029041,4]
[328893407,1717963863366,-713.77,0.00029041,4]
[328893408,1717963863376,-500.0,0.00029041,4]
[328893409,1717963863386,-500.0,0.00029041,4]
[328893410,1717963863397,-500.0,0.00029041,4]
[328893411,1717963863407,-500.0,0.00029041,4]
[328893412,1717963863417,-713.77,0.00029041,4]
[328893413,1717963863427,-482.14144673,0.00029041,4]
[328893414,1717963863437,-500.0,0.00029041,4]
[328893415,1717963863447,-713.77,0.00029041,4]
[328893416,1717963863458,-500.0,0.00029041,4]
[328893417,1717963863468,-713.77,0.00029041,4]
[328893418,1717963863478,-713.77,0.00029041,4]
[328893419,1717963863487,-713.77,0.00029041,4]
[328893420,1717963863497,-500.0,0.00029041,4]
[328893421,1717963863508,-713.77,0.00029041,4]
[328893422,1717963863518,-713.77,0.00029041,4]
[328893423,1717963863528,-263.098605,0.00029041,7]
[328893424,1717963863538,-713.77,0.00029041,4]
[328893425,1717963863548,-263.098605,0.00029041,7]
[328893426,1717963863559,-500.0,0.00029041,4]
[328893427,1717963863569,-263.098605,0.00029041,7]
[328893428,1717963863579,-500.0,0.00029041,4]
[328893429,1717963863589,-500.0,0.00029041,4]
[328893430,1717963863601,-500.0,0.00029041,4]
[328893431,1717963863611,-500.0,0.00029041,4]
[328893432,1717963863621,-263.098605,0.00029041,7]
[328893433,1717963863631,-506.07719449,0.00029041,4]
[328893434,1717963863642,-500.0,0.00029041,4]
[328893435,1717963863653,-500.0,0.00029041,4]
[328893436,1717963863664,-500.0,0.00029041,4]
[328893437,1717963863675,-500.0,0.00029041,4]
[328893438,1717963863687,-500.0,0.00029041,4]
[328893439,1717963863698,-500.0,0.00029041,4]
[328893440,1717963863709,-500.0,0.00029041,4]
[328893441,1717963863720,-500.0,0.00029041,4]
[328893442,1717963863731,-500.0,0.00029041,4]
[328893443,1717963863742,-500.0,0.00029041,4]
[328893444,1717963863753,-2642.03,0.00029041,4]
[328893445,1717963863763,-500.0,0.00029041,4]
[328893446,1717963863774,-500.0,0.00029041,4]
[328893447,1717963863785,-500.0,0.00029041,4]
[328893448,1717963863796,-500.0,0.00029041,4]
[328893449,1717963863807,-500.0,0.00029041,4]
[328893450,1717963863818,-2642.03,0.00029041,4]
[328893451,1717963863828,-500.0,0.00029041,4]
[328893452,1717963863839,-500.0,0.00029041,4]
[328893453,1717963863849,-2642.03,0.00029041,4]
[328893454,1717963863860,-381.71251264,0.00029041,4]
[328893455,1717963863872,-505.87945192,0.00029041,4]
[328893456,1717963863881,-500.0,0.00029041,4]
[328893457,1717963863892,-2642.03,0.00029041,4]
[328893458,1717963863902,-527.3346285,0.00029041,4]
[328893459,1717963863912,-500.0,0.00029041,4]
[328893460,1717963863922,-500.0,0.00029041,4]
[328893461,1717963863932,-2642.03,0.00029041,4]
[328893462,1717963863943,-500.0,0.00029041,4]
[328893463,1717963863953,-500.0,0.00029041,4]
[328893464,1717963863963,-500.0,0.00029041,4]
[328893465,1717963863973,-500.0,0.00029041,4]
[328893466,1717963863983,-500.0,0.00029041,4]
[328893467,1717963863993,-502.77430485,0.00029041,4]
[328893468,1717963864004,-500.0,0.00029041,4]
[328893469,1717963864014,-515.1483211,0.00029041,4]
[328893470,1717963864024,-500.0,0.00029041,4]
[328893471,1717963864034,-500.0,0.00029041,4]
[328893472,1717963864045,-3086.42,0.00029041,4]
[328893473,1717963864055,-500.0,0.00029041,4]
[328893474,1717963864065,-500.0,0.00029041,4]
[328893475,1717963864074,-3086.42,0.00029041,4]
[328893476,1717963864084,-603.66,0.00029041,4]
[328893477,1717963864094,-500.0,0.00029041,4]
[328893478,1717963864105,-500.0,0.00029041,4]
[328893479,1717963864115,-500.0,0.00029041,4]
[328893480,1717963864127,-3086.42,0.00029041,4]
[328893481,1717963864137,-603.66,0.00029041,4]
[328893482,1717963864148,-500.0,0.00029041,4]
[328893483,1717963864158,-500.0,0.00029041,4]
[328893484,1717963864168,-500.0,0.00029041,4]
[328893485,1717963864177,-500.0,0.00029041,4]
[328893486,1717963864188,-603.66,0.00029041,4]
[328893487,1717963864198,-3086.42,0.00029041,4]
[328893488,1717963864209,-486.68028981,0.00029041,4]
[328893489,1717963864219,-265.07,0.00029041,4]
[328893490,1717963864229,-500.0,0.00029041,4]
[328893491,1717963864239,-500.0,0.00029041,4]
[328893492,1717963864249,-603.66,0.00029041,4]
[328893493,1717963864259,-3086.42,0.00029041,4]
[328893494,1717963864269,-500.0,0.00029041,4]
[328893495,1717963864279,-500.0,0.00029041,4]
[328893496,1717963864289,-500.0,0.00029041,4]
[328893497,1717963864299,-603.66,0.00029041,4]
[328893498,1717963864309,-3086.42,0.00029041,4]
[328893499,1717963864319,-500.0,0.00029041,4]
[328893500,1717963864330,-500.0,0.00029041,4]
[328893501,1717963864340,-603.66,0.00029041,4]
[328893502,1717963864350,-3086.42,0.00029041,4]
[328893503,1717963864360,-500.0,0.00029041,4]
[328893504,1717963864371,-500.0,0.00029041,4]
[328893505,1717963864381,-500.0,0.00029041,4]
[328893506,1717963864390,-151.0,0.00029041,7]
[328893507,1717963864401,-603.66,0.00029041,4]
[328893508,1717963864411,-500.0,0.00029041,4]
[328893509,1717963864422,-500.0,0.00029041,4]
[328893510,1717963864432,-151.0,0.00029041,7]
[328893511,1717963864442,-500.0,0.00029041,4]
[328893512,1717963864452,-535.87,0.00029041,4]
[328893513,1717963864462,-151.0,0.00029041,7]
[328893514,1717963864473,-151.0,0.00029041,7]
[328893515,1717963864484,-500.0,0.00029041,4]
[328893516,1717963864494,-500.0,0.00029041,4]
[328893517,1717963864509,-500.0,0.00029041,4]
[328893518,1717963864520,-500.0,0.00029041,4]
[328893519,1717963864532,-4080.41,0.00029041,4]
[328893520,1717963864545,-500.0,0.00029041,4]
[328893521,1717963864555,-709.82,0.00029041,4]
[328893522,1717963864566,-500.0,0.00029041,4]
[328893523,1717963864578,-1728.05833832,0.00029041,4]
[328893524,1717963864840,-481.26234084,0.00029041,4]
[328893525,1717963864853,-1004.78665348,0.00029041,4]
[328893526,1717963864879,-866.30266736,0.00029041,4]
[328893527,1717963864892,-501.29,0.00029041,4]
[328893528,1717963864902,-709.82,0.00029041,4]
[328893529,1717963864912,-500.0,0.00029041,4]
[328893530,1717963864923,-4080.41,0.00029041,4]
[328893531,1717963864933,-268.37964232,0.00029041,4]
[328893532,1717963865143,-378.99296003,0.00020081,2]
[328893533,1717963865153,-232.91035768,0.00029041,4]
[328893534,1717963865163,-709.82,0.00029041,4]
[328893535,1717963865173,-500.0,0.00029041,4]
[328893536,1717963865183,-447.36003889,0.00029041,4]
[328893537,1717963865208,-962.63936826,0.00029041,4]
[328893538,1717963865220,-469.65,0.00029041,4]
[328893539,1717963865236,-2200.76059285,0.00029041,4]
[328893540,1717963865246,-228.27703938,0.00029041,4]
[328893541,1717963865261,-273.01296062,0.00029041,4]
[328893542,1717963865271,-116.61828305,0.00029041,4]
[328893543,1717963865287,-383.38171695,0.00029041,4]
[328893544,1717963865298,-367.14062119,0.00029041,4]
[328893545,1717963865311,-342.67937881,0.00029041,4]
[328893546,1717963865321,-298.06788839,0.00029041,4]
[328893547,1717963865333,-695.88916125,0.00029041,4]
[328893548,1717963865350,-3086.45295036,0.00029041,4]
[328893549,1717963865360,-500.0,0.00029041,4]
[328893550,1717963865371,-709.82,0.00029041,4]
[328893551,1717963865382,-501.29,0.00029041,4]
[328893552,1717963865392,-500.0,0.00029041,4]
[328893553,1717963865402,-709.82,0.00029041,4]
[328893554,1717963865413,-501.29,0.00029041,4]
[328893555,1717963865423,-709.82,0.00029041,4]
[328893556,1717963865434,-500.0,0.00029041,4]
[328893557,1717963865445,-709.82,0.00029041,4]
[328893558,1717963865456,-500.0,0.00029041,4]
[328893559,1717963865466,-709.82,0.00029041,4]
[328893560,1717963865478,-500.0,0.00029041,4]
[328893561,1717963865489,-709.82,0.00029041,4]
[328893562,1717963865500,-528.52822809,0.00029041,4]
[328893563,1717963865511,-501.29,0.00029041,4]
[328893564,1717963865522,-709.82,0.00029041,4]
[328893565,1717963865533,-501.29,0.00029041,4]
[328893566,1717963865544,-709.82,0.00029041,4]
[328893567,1717963865556,-500.0,0.00029041,4]
[328893568,1717963865568,-501.29,0.00029041,4]
[328893569,1717963865579,-500.0,0.00029041,4]
[328893570,1717963865589,-501.29,0.00029041,4]
[328893571,1717963865603,-330.80179927,0.00029041,4]
[328893572,1717963865616,-501.29,0.00029041,4]
[328893573,1717963865627,-500.0,0.00029041,4]
[328893574,1717963865637,-500.0,0.00029041,4]
[328893575,1717963865649,-500.0,0.00029041,4]
[328893576,1717963865659,-500.0,0.00029041,4]
[328893577,1717963865669,-500.0,0.00029041,4]
[328893578,1717963865681,-731.75,0.00029041,4]
[328893579,1717963865899,-731.75,0.00029041,4]
[328893580,1717963865909,-500.0,0.00029041,4]
[328893581,1717963865920,-731.75,0.00029041,4]
[328893582,1717963865930,-500.0,0.00029041,4]
[328893583,1717963865941,-731.75,0.00029041,4]
[328893584,1717963865951,-500.0,0.00029041,4]
[328893585,1717963865961,-731.75,0.00029041,4]
[328893586,1717963865972,-504.42323525,0.00029041,4]
[328893587,1717963865982,-500.0,0.00029041,4]
[328893588,1717963865993,-731.75,0.00029041,4]
[328893589,1717963866004,-187.98357937,0.00029041,4]
[328893590,1717963866015,-731.75,0.00029041,4]
[328893591,1717963866024,-1803.46,0.00029041,4]
[328893592,1717963866035,-1803.46,0.00029041,4]
[328893593,1717963866045,-1803.46,0.00029041,4]
[328893594,1717963866056,-500.0,0.00029041,4]
[328893595,1717963866066,-500.0,0.00029041,4]
[328893596,1717963866076,-1803.46,0.00029041,4]
[328893597,1717963866097,-500.0,0.00029041,4]
[328893598,1717963866108,-1803.46,0.00029041,4]
[328893599,1717963866118,-500.0,0.00029041,4]
[328893600,1717963866130,-151.0,0.00029041,7]
[328893601,1717963866141,-500.0,0.00029041,4]
[328893602,1717963866151,-500.0,0.00029041,4]
[328893603,1717963866162,-500.0,0.00029041,4]
[328893604,1717963866173,-151.0,0.00029041,7]
[328893605,1717963866183,-500.0,0.00029041,4]
[328893606,1717963866194,-500.0,0.00029041,4]
[328893607,1717963866205,-500.0,0.00029041,4]
[328893608,1717963866215,-224.883706,0.00029041,7]
[328893609,1717963866225,-500.0,0.00029041,4]
[328893610,1717963866236,-548.07979999,0.00029041,4]
[328893611,1717963866247,-500.0,0.00029041,4]
[328893612,1717963866257,-500.0,0.00029041,4]
[328893613,1717963866268,-500.0,0.00029041,4]
[328893614,1717963866279,-500.0,0.00029041,4]
[328893615,1717963866289,-520.49,0.00029041,4]
[328893616,1717963866301,-520.49,0.00029041,4]
[328893617,1717963866312,-500.0,0.00029041,4]
[328893618,1717963866323,-500.0,0.00029041,4]
[328893619,1717963866334,-520.49,0.00029041,4]
[328893620,1717963866345,-500.0,0.00029041,4]
[328893621,1717963866356,-520.49,0.00029041,4]
[328893622,1717963866366,-520.49,0.00029041,4]
[328893623,1717963866555,-500.0,0.00029041,4]
[328893624,1717963866567,-520.49,0.00029041,4]
[328893625,1717963866577,-500.0,0.00029041,4]
[328893626,1717963866588,-520.49,0.00029041,4]
[328893627,1717963866599,-500.0,0.00029041,4]
[328893628,1717963866614,-520.49,0.00029041,4]
[328893629,1717963866627,-500.0,0.00029041,4]
[328893630,1717963866638,-520.49,0.00029041,4]
[328893631,1717963866650,-319.03,0.00029041,4]
[328893632,1717963866661,-520.49,0.00029041,4]
[328893633,1717963866672,-506.24893441,0.00029041,4]
[328893634,1717963866683,-500.0,0.00029041,4]
[328893635,1717963866697,-500.0,0.00029041,4]
[328893636,1717963866707,-550.20611898,0.00029041,4]
[328893637,1717963866718,-500.0,0.00029041,4]
[328893638,1717963866729,-500.0,0.00029041,4]
[328893639,1717963866739,-517.47808725,0.00029041,4]
[328893640,1717963866750,-500.0,0.00029041,4]
[328893641,1717963866760,-500.0,0.00029041,4]
[328893642,1717963866771,-500.0,0.00029041,4]
[328893643,1717963866782,-500.0,0.00029041,4]
[328893644,1717963866793,-500.0,0.00029041,4]
[328893645,1717963866804,-13711.18,0.00029041,4]
[328893646,1717963866814,-500.0,0.00029041,4]
[328893647,1717963866825,-500.0,0.00029041,4]
[328893648,1717963866837,-13711.18,0.00029041,4]
[328893649,1717963866847,-1273.2,0.00029041,4]
[328893650,1717963866858,-500.0,0.00029041,4]
[328893651,1717963866869,-500.0,0.00029041,4]
[328893652,1717963866883,-12370.28173103,0.00029041,4]
[328893653,1717963866904,-1340.89826897,0.00029041,4]
[328893654,1717963866913,-1273.2,0.00029041,4]
[328893655,1717963866925,-500.0,0.00029041,4]
[328893656,1717963866935,-500.0,0.00029041,4]
[328893657,1717963866946,-1273.2,0.00029041,4]
[328893658,1717963866957,-13711.18,0.00029041,4]
[328893659,1717963866967,-500.0,0.00029041,4]
[328893660,1717963866978,-500.0,0.00029041,4]
[328893661,1717963866988,-500.0,0.00029041,4]
[328893662,1717963866999,-1273.2,0.00029041,4]
[328893663,1717963867010,-13711.18,0.00029041,4]
[328893664,1717963867020,-500.0,0.00029041,4]
[328893665,1717963867031,-507.21064004,0.00029041,4]
[328893666,1717963867042,-500.0,0.00029041,4]
[328893667,1717963867052,-1273.2,0.00029041,4]
[328893668,1717963867063,-13711.18,0.00029041,4]
[328893669,1717963867075,-500.0,0.00029041,4]
[328893670,1717963867085,-500.0,0.00029041,4]
[328893671,1717963867096,-512.91676746,0.00029041,4]
[328893672,1717963867107,-184.57,0.00029041,4]
[328893673,1717963867118,-500.0,0.00029041,4]
[328893674,1717963867132,-500.0,0.00029041,4]
[328893675,1717963867144,-13711.18,0.00029041,4]
[328893676,1717963867154,-505.87902115,0.00029041,4]
[328893677,1717963867164,-500.0,0.00029041,4]
[328893678,1717963867175,-531.54364428,0.00029041,4]
[328893679,1717963867186,-500.0,0.00029041,4]
[328893680,1717963867198,-500.0,0.00029041,4]
[328893681,1717963867209,-4684.75,0.00029041,4]
[328893682,1717963867220,-500.0,0.00029041,4]
[328893683,1717963867231,-500.0,0.00029041,4]
[328893684,1717963867243,-500.0,0.00029041,4]
[328893685,1717963867253,-4684.75,0.00029041,4]
[328893686,1717963867264,-500.0,0.00029041,4]
[328893687,1717963867277,-505.37452342,0.00029041,4]
[328893688,1717963867289,-500.0,0.00029041,4]
[328893689,1717963867300,-500.0,0.00029041,4]
[328893690,1717963867312,-500.0,0.00029041,4]
[328893691,1717963867323,-500.0,0.00029041,4]
[328893692,1717963867335,-500.0,0.00029041,4]
[328893693,1717963867346,-500.0,0.00029041,4]
[328893694,1717963867356,-4684.75,0.00029041,4]
[328893695,1717963867367,-500.0,0.00029041,4]
[328893696,1717963867379,-500.0,0.00029041,4]
[328893697,1717963867389,-500.0,0.00029041,4]
[328893698,1717963867400,-4684.75,0.00029041,4]
[328893699,1717963867411,-500.0,0.00029041,4]
[328893700,1717963867422,-4684.75,0.00029041,4]
[328893701,1717963867433,-500.0,0.00029041,4]
[328893702,1717963867443,-507.09407919,0.00029041,4]
[328893703,1717963867454,-4684.75,0.00029041,4]
[328893704,1717963867464,-500.0,0.00029041,4]
[328893705,1717963867475,-500.0,0.00029041,4]
[328893706,1717963867487,-500.0,0.00029041,4]
[328893707,1717963867497,-4684.75,0.00029041,4]
[328893708,1717963867508,-500.0,0.00029041,4]
[328893709,1717963867518,-501.01888965,0.00029041,4]
[328893710,1717963867529,-500.0,0.00029041,4]
[328893711,1717963867540,-505.00335648,0.00029041,4]
[328893712,1717963867551,-500.0,0.00029041,4]
[328893713,1717963867562,-500.0,0.00029041,4]
[328893714,1717963867572,-500.0,0.00029041,4]
[328893715,1717963867582,-500.0,0.00029041,4]
[328893716,1717963867594,-431.0109714,0.00029041,4]
[328893717,1717963867609,-500.0,0.00029041,4]
[328893718,1717963867620,-500.0,0.00029041,4]
[328893719,1717963867632,-500.0,0.00029041,4]
[328893720,1717963867643,-530.95,0.00029041,4]
[328893721,1717963867654,-531.9387582,0.00029041,4]
[328893722,1717963867665,-500.0,0.00029041,4]
[328893723,1717963867676,-502.30823142,0.00029041,4]
[328893724,1717963867689,-500.0,0.00029041,4]
[328893725,1717963867701,-500.0,0.00029041,4]
[328893726,1717963867711,-912.72,0.00029041,4]
[328893727,1717963867723,-500.0,0.00029041,4]
[328893728,1717963867733,-912.72,0.00029041,4]
[328893729,1717963867744,-500.0,0.00029041,4]
[328893730,1717963867754,-500.0,0.00029041,4]
[328893731,1717963867765,-912.72,0.00029041,4]
[328893732,1717963867776,-912.72,0.00029041,4]
[328893733,1717963867787,-500.0,0.00029041,4]
[328893734,1717963867797,-912.72,0.00029041,4]
[328893735,1717963867808,-500.0,0.00029041,4]
[328893736,1717963867819,-500.0,0.00029041,4]
[328893737,1717963867829,-503.28622762,0.00029041,4]
[328893738,1717963867839,-414.62662077,0.00029041,4]
[328893739,1717963867857,-85.37337923,0.00029041,4]
[328893740,1717963867867,-190.54562077,0.00029041,4]
[328893741,1717963868733,150.0,0.0001385,2]
[328893742,1717963868765,150.0,0.0001385,2]
[328893743,1717963868793,150.0,0.0001385,2]
[328893744,1717963868819,150.0,0.0001385,2]
[328893745,1717963868845,150.0,0.0001385,2]
[328893746,1717963868869,150.0,0.0001385,2]
[328893747,1717963868895,150.0,0.0001385,2]
[328893748,1717963868920,150.0,0.0001385,2]
[328893749,1717963868944,150.0,0.0001385,2]
[328893750,1717963868968,150.0,0.0001385,2]
[328893751,1717963868993,191.90145778,0.0001385,2]
[328893752,1717963869018,37.06293381,0.0001385,2]
[328893753,1717963904357,150.0,0.00014901,2]
[328893754,1717963904384,150.0,0.00014901,2]
[328893755,1717963904413,150.0,0.00014901,2]
[328893756,1717963904436,188.08328501,0.00014901,2]
[328893757,1717963904462,14441.31301499,0.00014901,2]
[328893760,1717963934202,957.32584388,0.00013158,2]
[328893761,1717963934377,4707.85159318,0.0001385,2]
[328893762,1717963940766,2552.72528865,0.00010388,2]
[328893763,1717963954118,957.66762831,0.00013158,2]
[328893764,1717963954460,155.0,0.00013712,2]
[328893765,1717964024783,2552.72528865,0.00010284,2]
[328893766,1717964076798,1275.23557742,7.713e-05,2]
[328893779,1717964951150,-217.40040456,0.00016368,2]
[328893780,1717964951175,-1052.98663514,0.00016369,2]
[328893781,1717964951199,-3502.91461439,0.00016369,2]
[328893782,1717964960551,-864.46411372,0.00016367,2]
[328893783,1717964960576,-7472.64357283,0.00016369,2]
[328893784,1717964960601,-1843.47061369,0.0001637,2]
[328893785,1717964960624,-626.1102705,0.00016468,2]
[328893786,1717964960647,-15358.58241108,0.00016469,2]
[328893787,1717964960669,-280.1,0.0001647,2]
[328893788,1717964960692,-150.0,0.00016529,2]
[328893789,1717964960713,-1296.0,0.0001653,2]
[328893790,1717964960735,-168.70238208,0.00017056,2]
[328893791,1717964960756,-531.15011943,0.00017258,2]
[328893792,1717964960777,-999.44,0.0001726,2]
[328893793,1717964960800,-163.21,0.00017389,2]
[328893794,1717964960823,-499.99,0.00017389,2]
[328893795,1717964960847,-210.0,0.00018182,2]
[328893796,1717964960868,-764.43220017,0.00018467,2]
[328893797,1717964960893,-384.0,0.00019644,2]
[328893798,1717964960917,-240.0,0.0002,2]
[328893799,1717964960940,-239.28085461,0.0002008,2]
[328893800,1717964960963,-267.42084264,0.0002008,2]
[328893801,1717964960988,-226.67450997,0.000201,2]
[328893802,1717964961013,-2045.62,0.00020707,2]
[328893803,1717964961043,-250.0,0.00021525,2]
[328893804,1717964961066,-4341.95957451,0.00021525,2]
[328893808,1717965032688,-2336.43414592,0.00017259,2]
[328893809,1717965032699,-699.19042549,0.00021525,2]
[328893810,1717965032710,-687.45952491,0.00021525,2]
[328893811,1717965032721,-8901.89799638,0.00021525,2]
[328893812,1717965032807,-1450.33475788,0.00021525,2]
[328893813,1717965032821,-8439.89297998,0.00021525,2]
[328893814,1717965032902,-453.99681642,0.00021525,2]
[328893815,1717965033005,-25801.19571769,0.00021525,2]
[328893816,1717965033048,-20013.40548474,0.00021525,2]
[328893817,1717965033064,-8764.33643565,0.00021525,2]
[328893818,1717965033077,-15960.6313601,0.00021525,2]
[328893819,1717965033149,-693.19250001,0.00021525,2]
[328893820,1717965033233,-2717.46216656,0.00021525,2]
[328893821,1717965033269,-4453.55193141,0.00021525,2]
[328893822,1717965033282,-1581.72744129,0.00021525,2]
[328893823,1717965033297,-740.58240107,0.00021525,2]
[328893824,1717965033309,-500.53973003,0.00021525,2]
[328893825,1717965033462,-1047.0,0.00021525,2]
[328893826,1717965033474,-4654.44,0.00021525,2]
[328893827,1717965033487,-2268.68775,0.00021525,2]
[328893828,1717965033499,-2192.68833918,0.00021525,2]
[328893829,1717965033512,-995.87545876,0.00021525,2]
[328893830,1717965033525,-3361.8399999,0.00021525,2]
[328893831,1717965033545,-566.55211337,0.00021525,2]
[328893836,1717965038981,-226.67450997,0.000201,2]
[328893837,1717965038991,-29430.0461612,0.00021525,2]
[328893838,1717965039005,-4771.74999926,0.00021525,2]
[328893839,1717965039017,-8927.05000028,0.00021525,2]
[328893840,1717965039031,-1001.6020927,0.00021525,2]
[328893841,1717965039048,-2999.64602747,0.00021525,2]
[328893842,1717965039067,-489.43979946,0.00021525,2]
[328893843,1717965039081,-688.5,0.00021525,2]
[328893844,1717965039094,-13725.33117693,0.00021525,2]
[328893845,1717965039127,-585.41820824,0.00021525,2]
[328893846,1717965039140,-263.8,0.00021525,2]
[328893847,1717965039345,-40401.42461563,0.00021525,2]
[328893848,1717965039358,-6706.7,0.00021525,2]
[328893849,1717965039371,-714.662132,0.00021525,2]
[328893850,1717965039483,-465.29459288,0.00021525,2]
[328893881,1717965040409,-86619.11457395,0.00021525,2]
[328893882,1717965040422,-332.5,0.00021525,2]
[328893883,1717965042121,-6723.4,0.00021525,2]
[328893884,1717965042142,-376.08080662,0.00021525,2]
[328893885,1717965042162,-358.11010027,0.00021525,2]
[328893886,1717965042174,-380.43487415,0.00021525,2]
[328893887,1717965042331,-850.24946448,0.00021525,2]
[328893888,1717965042360,-3268.0669238,0.00021525,2]
[328893889,1717965042434,-278.90148228,0.00021525,2]